bitfinex-derivatives/quotes_ETHF0:USTF0_20250426
["timestamp","ask_amount","ask_price","bid_price","bid_amount"]
[1745658261360,4.31721,1802.0,1801.9,54.34785349]
[1745658261564,3.2078,1802.0,1801.9,54.62523061]
[1745658261766,4.31721,1802.0,1801.9,54.62523061]
[1745658261966,4.31721,1802.0,1801.9,54.34785349]
[1745658262162,9.31721,1802.0,1801.9,54.34785349]
[1745658262365,3.2078,1802.8,1802.0,22.1849]
[1745658262670,1.10928,1802.2,1802.1,0.27737712]
[1745658262860,1.10935,1802.1,1802.0,0.27737712]
[1745658263164,1.10941,1802.0,1801.9,54.34786061]
[1745658263362,4.31721,1802.0,1801.9,54.34785349]
[1745658263556,9.31721,1802.0,1801.9,54.34785349]
[1745658263757,8.2078,1802.0,1801.9,54.34785349]
[1745658263965,10.3694,1802.6,1801.7,8.247]
[1745658263966,1.10939,1802.1,1801.7,8.247]
[1745658264265,3.3566,1802.0,1801.6,3.2078]
[1745658264674,3.3566,1802.0,1801.7,25.4469]
[1745658264872,1.10916,1802.4,1801.9,22.1849]
[1745658265070,3.3489,1802.3,1802.1,11.0923]
[1745658265267,3.4423,1802.6,1802.2,3.4143]
[1745658265465,4.458,1802.5,1802.2,3.4143]
[1745658265771,1.10919,1802.4,1802.0,3.2078]
[1745658265970,6.5567,1802.5,1802.0,3.2078]
[1745658266171,1.10931,1802.2,1802.0,3.4143]
[1745658266372,3.3489,1802.1,1802.0,3.4143]
[1745658266672,3.3489,1802.1,1802.0,3.2078]
[1745658266673,3.34366115,1802.1,1802.0,3.2078]
[1745658267362,3.34366115,1802.1,1802.0,0.34762]
[1745658267669,2.77354,1802.0,1801.3,3.2078]
[1745658267860,1.10968,1801.6,1801.5,11.0923]
[1745658268065,3.2078,1801.7,1801.4,22.1849]
[1745658268266,1.10971,1801.5,1801.3,11.0923]
[1745658268771,1.10982,1801.4,1801.2,3.3112]
[1745658268965,1.10984,1801.3,1801.2,14.4038]
[1745658269170,4.31763,1801.4,1801.2,3.3112]
[1745658269368,8.2078,1801.4,1800.7,3.2078]
[1745658269560,4.988,1801.9,1800.7,3.2078]
[1745658269561,1.1101,1800.9,1800.7,3.2078]
[1745658269765,1.11009,1800.9,1800.7,3.2078]
[1745658269963,1.11006,1801.0,1800.7,3.2078]
[1745658270164,1.11003,1801.0,1800.8,22.1849]
[1745658270468,3.3985,1801.1,1800.9,1.11008]
[1745658270771,5.308,1801.2,1801.0,22.1849]
[1745658270972,5.308,1801.2,1801.1,12.20226]
[1745658271172,4.3176,1801.4,1801.1,22.1849]
[1745658271375,7.5446,1801.4,1801.3,11.0923]
[1745658271572,6.4348,1801.4,1801.3,11.0923]
[1745658271873,7.54458,1801.4,1801.0,6.09899]
[1745658272072,7.54458,1801.4,1801.3,11.0923]
[1745658272272,1.11007,1801.0,1800.5,3.56849321]
[1745658272474,3.2078,1801.5,1801.0,8.9007]
[1745658272667,3.2078,1801.3,1800.8,4.989]
[1745658272868,3.2078,1801.3,1800.7,14.3004]
[1745658272869,1.11008,1800.9,1800.7,14.3004]
[1745658273064,4.3178,1801.1,1800.9,8.9007]
[1745658273269,1.1099,1801.2,1801.0,19.9933]
[1745658273577,1.1099,1801.2,1801.1,8.9007]
[1745658274076,1.10994,1801.2,1801.1,1.60988476]
[1745658274669,4.66174,1801.2,1801.1,1.60988476]
[1745658274867,1.11002,1801.0,1800.7,4.31797]
[1745658275073,1.11002,1801.0,1800.9,19.9933]
[1745658275468,5.0,1801.0,1800.7,3.2078]
[1745658275670,1.11017,1800.8,1800.5,3.56849321]
[1745658275873,3.2078,1801.1,1801.0,8.9007]
[1745658276074,4.3178,1801.1,1801.0,19.9933]
[1745658276274,3.5518,1801.3,1801.0,21.60318476]
[1745658276578,3.5518,1801.3,1801.1,19.9933]
[1745658276881,1.1099,1801.2,1801.1,8.9007]
[1745658277077,3.5518,1801.3,1800.9,3.2078]
[1745658277378,4.31762,1801.4,1801.2,19.9933]
[1745658277577,1.10984,1801.3,1801.2,19.9933]
[1745658277767,1.10984,1801.3,1801.2,1.60988476]
[1745658277970,2.77359,1802.0,1801.2,24.81098476]
[1745658277971,3.2078,1801.7,1801.2,24.81098476]
[1745658278171,3.2078,1801.9,1801.6,19.9933]
[1745658278376,1.10953,1801.8,1801.7,19.9933]
[1745658278573,3.2078,1801.9,1801.8,21.10283]
[1745658278779,3.2326,1802.1,1801.8,21.10283]
[1745658278981,6.8410232,1802.4,1802.0,23.2011]
[1745658279172,4.7424032,1802.4,1802.3,11.0926]
[1745658279373,4.7424032,1802.4,1802.3,1.60988476]
[1745658279686,3.6332232,1802.4,1802.0,8.1978]
[1745658279974,1.10935,1802.1,1802.0,20.90028476]
[1745658280174,1.10935,1802.1,1802.0,29.80098476]
[1745658280370,3.2567,1802.3,1801.7,4.99]
[1745658280678,1.10962,1801.7,1801.6,4.989]
[1745658280871,1.10955,1801.8,1801.7,8.9007]
[1745658281182,1.10947,1801.9,1801.8,19.9933]
[1745658281584,1.10947,1801.9,1801.8,1.60988476]
[1745658281777,6.4645,1802.0,1801.6,4.989]
[1745658281979,1.10959,1801.7,1801.6,17.69148476]
[1745658282285,1.10959,1801.7,1801.6,26.59218476]
[1745658283283,1.10956,1801.8,1801.6,29.97188476]
[1745658283485,1.10956,1801.8,1801.7,3.3797]
[1745658283985,1.10956,1801.8,1801.7,4.98958476]
[1745658284185,1.1095,1801.9,1801.7,24.98288476]
[1745658284387,1.1095,1801.9,1801.8,19.9933]
[1745658284579,4.31724,1802.0,1801.8,19.9933]
[1745658284782,3.2078,1802.0,1801.9,23.373]
[1745658284982,5.308,1802.1,1802.0,1.10941]
[1745658285181,4.317,1802.4,1802.1,1.10929]
[1745658285383,4.317,1802.4,1802.3,19.9933]
[1745658285582,6.8410232,1802.7,1802.3,23.2011]
[1745658285888,1.1091,1802.5,1802.3,1.60988476]
[1745658286083,1.1091,1802.5,1802.4,23.291]
[1745658286283,3.6332232,1802.7,1802.4,23.291]
[1745658286489,3.6332232,1802.7,1802.6,24.31014]
[1745658286686,3.2078,1803.0,1802.6,23.2011]
[1745658286890,3.6332232,1803.1,1802.9,23.2011]
[1745658287090,3.6332232,1803.1,1803.0,24.39979]
[1745658287492,3.6332232,1803.1,1803.0,26.00967476]
[1745658287891,3.6332232,1803.1,1803.0,31.00967476]
[1745658288393,3.6332232,1803.1,1803.0,26.00967476]
[1745658288903,5.44983481,1803.2,1803.1,1.10873]
[1745658289197,5.44983481,1803.2,1803.1,23.3583]
[1745658289385,6.55850481,1803.2,1803.1,14.4576]
[1745658289592,5.44983481,1803.2,1803.1,14.4576]
[1745658289790,5.44983481,1803.2,1803.0,3.2977]
[1745658290592,3.4941,1803.3,1803.0,3.2977]
[1745658290799,6.7019,1803.3,1803.0,3.2977]
[1745658291191,12.0099,1803.3,1803.0,3.2977]
[1745658291891,3.2078,1803.1,1802.7,3.2078]
[1745658292091,3.4941,1803.0,1802.8,3.4342]
[1745658292696,8.5158,1803.1,1802.8,3.4342]
[1745658292891,8.5158,1803.1,1802.7,3.2078]
[1745658293199,12.0634,1803.1,1802.8,23.4347]
[1745658293393,12.0634,1803.1,1802.9,3.4414]
[1745658294100,17.0634,1803.1,1802.7,3.2078]
[1745658294297,12.0634,1803.1,1802.7,3.2078]
[1745658294695,12.0634,1803.1,1802.6,3.4414]
[1745658294696,3.2078,1802.8,1802.6,3.4414]
[1745658295102,8.5158,1802.8,1802.6,3.4414]
[1745658295600,8.5158,1802.8,1802.7,11.0926]
[1745658295996,8.5158,1802.8,1802.7,3.5062]
[1745658297295,8.5158,1802.8,1802.7,5.11608476]
[1745658298100,17.59885801,1802.8,1802.7,5.11608476]
[1745658298501,17.59885801,1802.8,1802.7,19.9933]
[1745658298702,17.59885801,1802.8,1802.4,9.29048162]
[1745658298903,17.59885801,1802.8,1802.7,19.9933]
[1745658299301,12.29085801,1802.8,1802.4,9.29048162]
[1745658299600,12.29085801,1802.8,1802.7,19.9933]
[1745658299905,12.29085801,1802.8,1802.4,9.29048162]
[1745658300105,3.2924,1802.7,1802.4,9.29048162]
[1745658300307,3.2924,1802.7,1802.4,3.2078]
[1745658300509,3.4953,1802.6,1802.4,3.2078]
[1745658300706,3.2924,1802.5,1802.4,3.2078]
[1745658301203,8.6004,1802.5,1802.4,3.2078]
[1745658301604,5.308,1802.5,1802.4,19.0033566]
[1745658302412,12.29085801,1802.8,1802.4,19.0033566]
[1745658302609,3.408,1802.7,1802.6,15.7955566]
[1745658303212,12.29085801,1802.8,1802.6,15.7955566]
[1745658303405,12.29085801,1802.8,1802.7,15.7955566]
[1745658303815,9.08305801,1802.8,1802.7,15.7955566]
[1745658304308,9.08305801,1802.8,1802.7,19.3698566]
[1745658306313,9.08305801,1802.8,1802.7,24.3698566]
[1745658306515,3.2078,1803.1,1802.7,19.3698566]
[1745658306715,3.2078,1803.1,1803.0,15.7955566]
[1745658307118,8.5158,1803.1,1802.8,4.978]
[1745658307421,8.5158,1803.1,1803.0,15.7955566]
[1745658307912,8.5158,1803.1,1802.9,3.4094]
[1745658308112,3.4468,1803.0,1802.9,3.4094]
[1745658308315,8.5158,1803.1,1803.0,15.7955566]
[1745658308714,8.5158,1803.1,1802.9,3.4094]
[1745658309119,3.4468,1803.2,1803.0,15.7955566]
[1745658309313,3.4468,1803.2,1803.1,10.3042566]
[1745658309914,3.4468,1803.2,1802.8,8.1858]
[1745658310114,8.7548,1803.2,1802.9,19.2049566]
[1745658310617,8.7548,1803.2,1802.9,3.4094]
[1745658311017,3.2078,1803.0,1802.4,4.978]
[1745658311218,3.4474,1802.9,1802.7,15.7955566]
[1745658312218,3.2078,1803.0,1802.8,19.1570566]
[1745658312418,3.2078,1803.0,1802.9,19.1570566]
[1745658313011,9.08305801,1803.2,1802.9,24.1570566]
[1745658313211,7.01605645,1803.0,1802.9,8.3615]
[1745658313513,10.89966962,1803.9,1802.9,11.5693]
[1745658313717,10.89966962,1803.9,1803.8,4.79723368]
[1745658313918,14.44676962,1803.9,1803.8,4.79723368]
[1745658314523,19.44676962,1803.9,1803.6,3.4638]
[1745658314822,19.44676962,1803.9,1803.2,4.973]
[1745658314823,3.29459892,1803.8,1803.2,4.973]
[1745658315025,3.2078,1803.6,1803.2,4.79723368]
[1745658315322,3.2078,1803.4,1803.0,3.4638]
[1745658315510,3.2078,1803.2,1803.0,8.26103368]
[1745658315713,3.5471,1803.1,1803.0,3.4638]
[1745658317316,3.2078,1803.2,1803.0,8.26103368]
[1745658317516,3.2078,1803.2,1803.1,4.79723368]
[1745658317713,3.2078,1803.2,1803.0,3.4638]
[1745658317922,3.3858,1803.1,1803.0,8.26103368]
[1745658319217,3.2078,1803.2,1803.0,8.26103368]
[1745658320126,8.5158,1803.2,1803.0,8.26103368]
[1745658320326,3.3139,1803.1,1803.0,3.4638]
[1745658321124,8.6219,1803.1,1803.0,3.4638]
[1745658321725,13.6219,1803.1,1802.7,4.973]
[1745658321928,3.2078,1803.0,1802.9,4.79723368]
[1745658322425,5.308,1803.1,1802.9,4.79723368]
[1745658322727,5.308,1803.1,1803.0,8.19603368]
[1745658323020,5.308,1803.1,1803.0,6.6066]
[1745658323227,10.89966962,1803.6,1803.0,11.6066]
[1745658323527,10.89966962,1803.6,1803.3,3.2078]
[1745658323826,10.89966962,1803.6,1803.4,3.3988]
[1745658324127,10.89966962,1803.6,1803.5,4.973]
[1745658326128,3.2078,1803.7,1803.5,4.973]
[1745658326324,3.2078,1803.7,1803.6,3.2499]
[1745658326621,3.2078,1803.9,1803.6,3.2499]
[1745658326926,3.2078,1803.9,1803.7,3.3282]
[1745658327113,3.2078,1803.9,1803.8,3.2499]
[1745658327825,3.2078,1803.9,1803.5,4.973]
[1745658328027,3.5656,1803.8,1803.4,4.972]
[1745658328327,3.4384,1803.7,1803.4,8.2219]
[1745658329615,3.3829,1803.8,1803.4,8.2219]
[1745658329819,3.2078,1803.9,1803.4,8.2219]
[1745658330422,3.2078,1803.9,1803.5,3.5701]
[1745658330622,3.2078,1803.9,1803.6,3.3425]
[1745658331017,4.31606,1803.9,1803.7,1.10836]
[1745658331224,3.2078,1803.9,1803.8,3.3425]
[1745658331417,1.10821,1804.0,1803.8,4.4508]
[1745658331620,10.89966962,1804.1,1804.0,1.10818]
[1745658332428,10.89966962,1804.1,1803.9,1.10823]
[1745658332732,10.89966962,1804.1,1803.9,4.36483]
[1745658333331,15.21554962,1804.2,1803.9,4.36483]
[1745658334034,1.10818,1804.0,1803.9,3.2566]
[1745658334528,14.10746962,1804.2,1803.9,3.2566]
[1745658334733,14.10746962,1804.2,1804.0,1.10814]
[1745658334931,10.89966962,1804.2,1804.1,3.5434]
[1745658335131,12.00771962,1804.2,1804.1,3.5434]
[1745658336526,10.89966962,1804.2,1804.1,4.65152]
[1745658336721,12.00771962,1804.2,1804.1,3.5434]
[1745658337134,10.89966962,1804.2,1804.1,3.5434]
[1745658337633,1.10805,1804.2,1804.1,3.5434]
[1745658338325,4.38955,1804.2,1804.1,3.5434]
[1745658339829,1.10805,1804.2,1804.1,3.5434]
[1745658340230,4.38955,1804.2,1804.1,3.5434]
[1745658340933,17.21527931,1804.2,1804.1,3.5434]
[1745658341141,1.1082,1804.0,1803.8,9.28706]
[1745658341437,16.10722931,1804.2,1803.9,3.5567]
[1745658341634,12.82572931,1804.2,1804.0,3.2078]
[1745658341834,12.82572931,1804.2,1804.1,4.66482]
[1745658342037,12.82572931,1804.2,1804.1,7.93362]
[1745658343238,12.82572931,1804.2,1804.1,11.19902]
[1745658344044,12.82572931,1804.2,1804.1,6.8255]
[1745658344045,13.93377931,1804.2,1804.1,6.8255]
[1745658344440,1.10805,1804.2,1804.1,6.8255]
[1745658344842,1.10803,1804.3,1804.1,7.93358]
[1745658345133,19.55730443,1804.4,1804.3,1.10799]
[1745658345339,16.34950443,1804.4,1804.3,1.10799]
[1745658345841,16.34950443,1804.4,1804.3,41.90799]
[1745658346143,16.34950443,1804.4,1804.3,46.90799]
[1745658346637,5.59830443,1804.4,1804.3,46.90799]
[1745658347041,5.59830443,1804.4,1804.3,46.90434444]
[1745658348034,5.59830443,1804.4,1804.3,41.90799]
[1745658348343,3.4651,1804.4,1804.3,41.90799]
[1745658348543,3.2527,1804.7,1804.3,46.86994]
[1745658348739,3.4651,1804.6,1804.3,45.762]
[1745658349050,1.10793,1804.4,1804.3,45.762]
[1745658349247,1.10793,1804.4,1804.3,4.962]
[1745658350738,6.6729,1804.6,1803.9,3.2078]
[1745658350739,1.10804,1804.3,1803.9,3.2078]
[1745658351041,3.4923,1804.2,1804.0,4.962]
[1745658351250,3.4923,1804.2,1804.0,9.39924]
[1745658351447,3.2062,1804.1,1804.0,9.39924]
[1745658351745,3.4923,1804.2,1804.1,1.10812]
[1745658351948,6.6985,1804.2,1804.1,4.31592]
[1745658352147,6.6985,1804.2,1804.1,9.27792]
[1745658352345,1.10777,1804.7,1804.5,1.10785]
[1745658352544,3.4923,1804.8,1804.5,4.962]
[1745658352747,3.4923,1804.8,1804.7,1.10775]
[1745658353051,3.2062,1805.0,1804.9,1.10762]
[1745658353548,3.2062,1805.0,1804.8,4.39134]
[1745658353746,4.31378,1805.0,1804.8,4.39134]
[1745658353947,4.31378,1805.0,1804.8,3.2837]
[1745658354245,4.31378,1805.0,1804.8,4.39138]
[1745658354450,3.2062,1805.0,1804.9,1.10762]
[1745658354753,14.43148417,1805.2,1805.1,1.1075]
[1745658355152,10.98978417,1805.2,1805.1,1.1075]
[1745658355340,10.98978417,1805.2,1805.0,4.42281]
[1745658355545,10.98978417,1805.2,1805.1,3.2837]
[1745658355745,14.50228417,1805.2,1805.1,3.2837]
[1745658355940,14.50228417,1805.2,1805.1,4.3912]
[1745658356146,14.50228417,1805.2,1805.1,3.2837]
[1745658356347,10.98978417,1805.2,1805.1,4.3912]
[1745658357146,15.98978417,1805.2,1804.4,3.2078]
[1745658357350,3.2078,1804.8,1804.3,3.2078]
[1745658357547,10.182,1804.7,1804.3,3.2078]
[1745658357842,1.10794,1804.4,1804.1,44.1756]
[1745658358049,3.3528,1804.6,1804.2,4.48363]
[1745658358260,1.10812,1804.1,1804.0,3.2078]
[1745658358860,1.10821,1804.0,1803.8,8.1688]
[1745658359059,3.4234,1804.0,1803.8,8.1688]
[1745658359257,1.10836,1803.7,1803.6,0.0145]
[1745658359563,1.10833,1803.8,1803.6,3.2223]
[1745658359757,4.53176,1803.7,1803.6,40.8145]
[1745658359957,4.53176,1803.7,1803.6,0.0145]
[1745658360152,3.4234,1803.7,1803.6,0.0145]
[1745658360354,4.53176,1803.7,1803.6,0.0145]
[1745658361263,3.4234,1803.7,1803.6,0.0145]
[1745658362761,6.6814,1804.0,1803.6,8.2223]
[1745658362954,3.2078,1804.2,1804.0,1.10817]
[1745658363156,4.36867,1804.4,1804.1,1.1081]
[1745658363463,4.36867,1804.4,1804.2,1.10805]
[1745658363464,3.2607,1804.4,1804.2,1.10805]
[1745658363662,3.2607,1804.4,1804.3,4.33369]
[1745658363859,3.2607,1804.4,1804.3,3.2257]
[1745658364266,4.36863,1804.4,1804.3,3.2257]
[1745658364459,3.2607,1804.4,1804.3,3.2257]
[1745658364657,4.36863,1804.4,1804.3,3.2257]
[1745658364866,1.10812,1804.1,1804.0,8.1698]
[1745658365962,1.10812,1804.1,1804.0,4.962]
[1745658366366,1.10825,1803.9,1803.7,8.3491]
[1745658366562,4.4038,1804.0,1803.7,8.3491]
[1745658366763,3.2956,1803.9,1803.8,3.3871]
[1745658366962,1.10819,1804.0,1803.8,6.5949]
[1745658367266,1.10824,1803.9,1803.8,3.3871]
[1745658367467,1.1083,1803.8,1803.7,4.962]
[1745658367766,3.2078,1804.1,1803.7,4.962]
[1745658367968,6.5016,1804.0,1803.7,4.962]
[1745658368168,1.1083,1803.8,1803.7,4.962]
[1745658368665,3.5404,1803.9,1803.7,1.10832]
[1745658369254,4.64865,1803.9,1803.7,1.10832]
[1745658369463,3.5404,1803.9,1803.6,3.2078]
[1745658369661,3.5404,1803.8,1803.6,3.2078]
[1745658370060,3.206,1804.0,1803.7,3.3792]
[1745658370370,3.2078,1804.1,1804.0,1.10818]
[1745658370767,4.64856,1804.1,1803.8,4.48746]
[1745658371063,6.7482,1804.1,1803.4,54.8878]
[1745658371267,1.10827,1803.9,1803.5,3.1933]
[1745658371567,1.10809,1804.2,1803.8,3.2078]
[1745658371769,3.372,1804.1,1804.0,3.2078]
[1745658371969,3.372,1804.1,1804.0,4.31598]
[1745658372169,3.2078,1804.3,1804.2,1.10805]
[1745658372364,3.372,1804.3,1804.2,1.10805]
[1745658373163,3.3505,1804.4,1804.2,1.10805]
[1745658373164,3.3505,1804.4,1804.3,1.10799]
[1745658373366,3.372,1804.5,1804.4,1.10791]
[1745658374058,3.372,1804.5,1804.4,4.31571]
[1745658375571,3.372,1804.5,1804.3,3.1933]
[1745658375772,3.372,1804.5,1804.4,1.10793]
[1745658376066,3.372,1804.5,1804.4,4.31573]
[1745658376274,3.4188,1804.8,1804.4,3.2078]
[1745658376474,6.7778,1804.8,1804.7,1.10775]
[1745658376774,3.359,1804.8,1804.7,4.31555]
[1745658376978,12.82572931,1805.0,1804.9,1.10762]
[1745658377269,12.82572931,1805.0,1804.9,41.90762]
[1745658377462,12.82572931,1805.0,1804.9,45.11542]
[1745658377666,12.82572931,1805.0,1804.9,50.11542]
[1745658378171,17.43772931,1805.3,1805.1,1.10747]
[1745658378473,16.33032931,1805.3,1805.2,1.10744]
[1745658378673,16.33032931,1805.3,1805.1,1.10746]
[1745658378868,12.82572931,1805.3,1805.2,7.82084]
[1745658380073,1.10744,1805.2,1805.0,8.1598]
[1745658380273,1.1075,1805.1,1805.0,8.1598]
[1745658380572,1.1075,1805.1,1805.0,4.952]
[1745658381268,3.2157,1805.2,1805.0,4.952]
[1745658381469,3.2157,1805.2,1805.0,6.05953]
[1745658381670,4.32316,1805.2,1805.0,6.05953]
[1745658381872,3.2157,1805.2,1805.1,1.1075]
[1745658382274,12.82572931,1805.3,1805.2,1.10744]
[1745658382667,12.82572931,1805.3,1805.2,4.31524]
[1745658383173,12.82572931,1805.3,1805.2,7.71334]
[1745658384378,12.82572931,1805.3,1805.2,6.6059]
[1745658384573,12.82572931,1805.3,1805.2,3.2078]
[1745658384873,17.29690931,1805.3,1805.2,3.2078]
[1745658385072,1.1075,1805.1,1805.0,4.952]
[1745658385480,1.10756,1805.0,1804.9,40.8]
[1745658385679,1.10755,1805.1,1804.9,40.8]
[1745658385881,3.3638,1805.0,1804.9,41.90758]
[1745658386265,3.3638,1805.0,1804.9,40.8]
[1745658386469,4.47136,1805.0,1804.9,40.8]
[1745658386873,3.3638,1805.0,1804.9,41.90762]
[1745658387269,3.3638,1805.0,1804.9,1.10762]
[1745658387473,3.4806,1805.2,1804.8,6.515]
[1745658387679,1.10756,1805.0,1804.9,40.8]
[1745658388574,6.9357,1805.2,1804.9,40.8]
[1745658388972,1.10754,1805.1,1804.9,41.90762]
[1745658389278,3.4551,1805.0,1804.9,40.8]
[1745658389479,4.56266,1805.0,1804.9,40.8]
[1745658390080,3.4551,1805.0,1804.7,4.95]
[1745658390381,1.10766,1804.9,1804.7,6.05775]
[1745658390570,1.10766,1804.9,1804.7,46.85775]
[1745658390571,3.2804,1804.8,1804.7,46.85775]
[1745658391376,4.38809,1804.8,1804.7,45.75]
[1745658392177,4.38809,1804.8,1804.7,4.95]
[1745658393273,3.2804,1804.8,1804.7,6.05775]
[1745658393879,6.6884,1805.2,1804.7,6.05775]
[1745658393880,1.1075,1805.1,1804.8,1.10763]
[1745658394075,3.3178,1805.0,1804.9,1.10762]
[1745658394877,6.6884,1805.2,1804.8,9.7842]
[1745658395179,1.10762,1804.9,1804.8,3.2078]
[1745658395383,1.10769,1804.8,1804.7,4.95]
[1745658396074,4.53794,1804.9,1804.7,6.05773]
[1745658396477,3.4303,1804.9,1804.8,1.10769]
[1745658396675,4.53792,1804.9,1804.7,6.05771]
[1745658396876,7.79588,1805.2,1805.0,1.10755]
[1745658397080,6.9109,1805.2,1805.1,1.1075]
[1745658397280,6.9109,1805.2,1805.1,4.4909]
[1745658397481,8.01834,1805.2,1805.1,3.3834]
[1745658397681,8.01834,1805.2,1805.0,4.31532]
[1745658397987,1.10728,1805.5,1805.3,1.10736]
[1745658398182,3.2976,1805.7,1805.4,1.10728]
[1745658398383,4.3443,1805.6,1805.4,4.56598]
[1745658398583,3.2371,1805.6,1805.4,4.56598]
[1745658398778,1.10726,1805.5,1805.4,3.4587]
[1745658399082,3.2371,1805.6,1805.4,4.56598]
[1745658400080,4.34433,1805.6,1805.3,4.31512]
[1745658400283,3.2371,1805.6,1805.4,1.1073]
[1745658400471,3.2371,1805.6,1805.5,1.10726]
[1745658400675,3.2371,1805.6,1805.4,4.56598]
[1745658400875,3.2371,1805.6,1805.5,1.10726]
[1745658401075,3.2371,1805.6,1805.4,3.4587]
[1745658401273,4.34434,1805.6,1805.4,3.4587]
[1745658401478,4.34434,1805.6,1805.3,3.2078]
[1745658401684,4.34434,1805.6,1805.4,1.1073]
[1745658402288,3.2371,1805.6,1805.3,3.2078]
[1745658402586,3.2371,1805.6,1805.4,1.10729]
[1745658402587,4.34431,1805.6,1805.4,1.10729]
[1745658402774,3.2371,1805.6,1805.3,4.31516]
[1745658402981,3.3634,1805.5,1805.3,4.31515]
[1745658403391,3.3634,1805.5,1805.4,1.10732]
[1745658403581,3.3634,1805.5,1805.3,3.2078]
[1745658403582,3.3634,1805.5,1805.3,6.5349]
[1745658403884,3.3634,1805.5,1805.3,7.64223]
[1745658404289,3.3634,1805.5,1805.3,6.5349]
[1745658404487,3.3634,1805.5,1805.1,6.5573]
[1745658404692,1.10742,1805.3,1805.1,7.66479]
[1745658404885,3.4007,1805.2,1805.1,7.66479]
[1745658405192,3.4007,1805.2,1805.1,4.45699]
[1745658405590,3.4007,1805.2,1804.9,8.1468]
[1745658405788,4.3025,1805.1,1804.9,9.25438]
[1745658405989,4.50826,1805.0,1804.9,3.2078]
[1745658406591,4.50826,1805.0,1804.6,47.2523]
[1745658406790,3.4007,1804.9,1804.8,1.10768]
[1745658407685,3.4007,1804.9,1804.7,3.2445]
[1745658407881,3.4007,1804.9,1804.8,1.10769]
[1745658408394,3.2078,1805.4,1805.2,1.1074]
[1745658408595,3.1934,1805.3,1805.2,1.1074]
[1745658409294,3.4031,1805.4,1805.3,1.10738]
[1745658409596,4.35868,1805.7,1805.4,1.10727]
[1745658409789,3.1934,1805.6,1805.5,1.10726]
[1745658410687,3.2078,1805.8,1805.4,4.939]
[1745658410883,6.6309,1805.8,1805.5,3.4129]
[1745658411090,1.10716,1805.7,1805.5,3.4129]
[1745658411396,3.4231,1805.6,1805.5,4.52014]
[1745658412786,4.51012,1805.9,1805.5,3.4129]
[1745658412999,4.53021,1805.8,1805.6,1.10715]
[1745658413384,4.53021,1805.8,1805.5,4.52012]
[1745658413588,1.10717,1805.7,1805.5,4.52012]
[1745658413789,3.5413,1805.6,1805.5,4.52012]
[1745658414499,3.5413,1805.6,1805.5,4.52016]
[1745658415402,3.5413,1805.6,1805.5,3.4129]
[1745658415697,3.5413,1805.6,1805.5,1.10726]
[1745658416096,3.5413,1805.6,1805.4,8.1468]
[1745658416299,1.10726,1805.5,1805.4,8.1468]
[1745658416893,1.10726,1805.5,1805.4,4.939]
[1745658417196,3.5413,1805.6,1805.4,4.939]
[1745658417397,4.64851,1805.6,1805.4,6.04628]
[1745658417899,3.5413,1805.6,1805.5,1.10726]
[1745658418301,3.5413,1805.6,1805.5,4.63556]
[1745658419502,3.5413,1805.6,1805.5,7.95966]
[1745658419806,4.51016,1805.9,1805.5,15.0602]
[1745658419807,3.4031,1805.9,1805.5,15.0602]
[1745658420009,3.5391,1806.1,1806.0,1.10695]
[1745658422002,3.5391,1806.1,1806.0,4.52715]
[1745658422398,16.03352931,1806.2,1806.1,1.10689]
[1745658422593,19.58082931,1806.2,1806.1,1.10689]
[1745658422799,16.23932931,1806.3,1806.1,3.2078]
[1745658422999,12.82572931,1806.3,1806.2,4.61703]
[1745658423410,12.82572931,1806.3,1806.2,9.55503]
[1745658424203,12.82572931,1806.3,1806.2,14.55172763]
[1745658424608,12.82572931,1806.3,1806.2,55.35172763]
[1745658424809,12.82572931,1806.3,1806.2,61.26972763]
[1745658425409,14.53289283,1806.5,1806.4,1.1067]
[1745658425606,14.53289283,1806.5,1806.4,10.2325]
[1745658426108,18.04889283,1806.5,1806.4,54.3194]
[1745658426311,18.04889283,1806.5,1806.4,44.0078]
[1745658426504,18.04889283,1806.5,1806.4,45.1145]
[1745658426705,6.9639,1806.5,1806.4,45.1145]
[1745658426908,6.9639,1806.5,1806.4,48.4014]
[1745658427702,15.63931283,1806.9,1806.7,1.1065]
[1745658427903,3.516,1806.8,1806.7,1.1065]
[1745658428903,17.98079283,1806.9,1806.7,3.3008]
[1745658429107,17.98079283,1806.9,1806.8,1.10646]
[1745658429509,14.53289283,1806.9,1806.8,1.10646]
[1745658429715,14.53289283,1806.9,1806.8,4.31426]
[1745658430127,3.6452,1807.1,1806.8,4.31426]
[1745658430128,3.6452,1807.1,1807.0,1.10634]
[1745658430619,7.82702,1807.4,1807.2,1.10619]
[1745658430820,7.82702,1807.4,1807.0,8.1438]
[1745658430821,4.75137,1807.3,1807.1,4.40706]
[1745658431218,3.6452,1807.3,1807.2,1.10621]
[1745658431621,3.6452,1807.3,1807.2,41.90621]
[1745658431922,4.75135,1807.3,1807.2,40.8]
[1745658432317,9.75135,1807.3,1807.2,40.8]
[1745658433127,1.10628,1807.1,1807.0,8.1438]
[1745658433328,1.10625,1807.2,1807.0,9.25013]
[1745658433518,3.5842,1807.1,1807.0,48.9438]
[1745658433720,3.5842,1807.1,1807.0,50.05014]
[1745658434123,7.82703,1807.4,1807.0,48.9438]
[1745658434427,3.5842,1807.3,1807.2,1.10621]
[1745658434830,3.5842,1807.3,1807.2,4.31401]
[1745658435031,3.5131,1807.4,1807.3,1.10615]
[1745658435223,3.5131,1807.4,1807.3,4.49625]
[1745658436222,1.10615,1807.3,1807.2,3.2078]